bitfinex/quotes_SOLUSD_20220211
["timestamp","ask_amount","ask_price","bid_price","bid_amount"]
[1644623516464,5.181,96.529,96.47,15.5528]
[1644623516759,34.3049766,96.529,96.47,15.5528]
[1644623516960,15.5535,96.52,96.47,15.5528]
[1644623517360,5.181,96.519,96.47,15.5528]
[1644623518263,45.49520664,96.509,96.441,24.45520407]
[1644623518464,5.182,96.508,96.441,23.0104]
[1644623518670,50.67720664,96.509,96.441,23.0104]
[1644623518866,45.49520664,96.509,96.441,23.0104]
[1644623519671,15.557,96.5,96.441,23.0104]
[1644623519871,15.557,96.5,96.45,15.5562]
[1644623520068,45.49520664,96.509,96.45,15.5562]
[1644623523084,5.182,96.508,96.45,15.5562]
[1644623523281,45.49520664,96.509,96.45,15.5562]
[1644623524579,45.49520664,96.509,96.452,1.44480407]
[1644623524784,45.49520664,96.509,96.46,15.554]
[1644623525381,45.49520664,96.509,96.448,1.44480407]
[1644623525382,15.5565,96.5,96.448,1.44480407]
[1644623525779,5.182,96.499,96.45,15.5562]
[1644623525982,5.182,96.499,96.444,1.44480407]
[1644623526180,15.5565,96.5,96.444,1.44480407]
[1644623526782,15.5565,96.5,96.445,1.44480407]
[1644623527481,15.5565,96.5,96.446,1.44480407]
[1644623527681,5.182,96.499,96.448,1.44480407]
[1644623527882,5.182,96.499,96.45,15.5567]
[1644623528081,15.5565,96.5,96.45,15.5567]
[1644623529084,5.182,96.508,96.451,6.76858187]
[1644623529286,45.49520664,96.509,96.451,6.76858187]
[1644623529488,45.49520664,96.509,96.46,15.555]
[1644623530812,5.182,96.508,96.46,15.555]
[1644623531913,15.555,96.51,96.46,16.99980407]
[1644623532113,15.5534,96.52,96.46,16.99980407]
[1644623532516,15.5534,96.52,96.466,1.44480407]
[1644623532712,39.20598761,96.519,96.47,15.5528]
[1644623532915,44.38798761,96.519,96.47,15.5528]
[1644623536926,15.5547,96.51,96.46,15.5552]
[1644623537125,5.182,96.509,96.457,1.44480407]
[1644623537326,5.182,96.509,96.455,1.44480407]
[1644623537529,5.182,96.518,96.455,1.44480407]
[1644623537729,5.182,96.518,96.453,24.8642]
[1644623537730,5.182,96.518,96.454,1.44480407]
[1644623537928,15.5566,96.5,96.454,1.44480407]
[1644623538129,43.59449804,96.499,96.454,1.44480407]
[1644623538329,43.59449804,96.499,96.453,26.30900407]
[1644623538929,43.59449804,96.499,96.454,1.44480407]
[1644623539130,43.59449804,96.499,96.456,1.44480407]
[1644623539732,43.59449804,96.499,96.46,15.5556]
[1644623540633,15.5552,96.51,96.462,1.44480407]
[1644623540933,5.182,96.526,96.47,15.5535]
[1644623541532,35.67441737,96.525,96.47,15.5535]
[1644623541733,15.5535,96.52,96.47,15.5535]
[1644623541932,5.181,96.519,96.466,1.44480407]
[1644623542135,5.181,96.524,96.466,1.44480407]
[1644623542333,5.181,96.524,96.46,15.5552]
[1644623542736,5.181,96.524,96.461,1.44480407]
[1644623542933,15.5552,96.51,96.461,1.44480407]
[1644623543234,43.19283491,96.509,96.464,1.44480407]
[1644623543433,43.19283491,96.509,96.462,1.44480407]
[1644623543634,43.19283491,96.509,96.47,15.5541]
[1644623545536,5.181,96.508,96.47,15.5541]
[1644623546337,43.19283491,96.509,96.47,15.5541]
[1644623551841,43.19283491,96.509,96.471,1.44480407]
[1644623552042,43.19283491,96.509,96.477,1.44480407]
[1644623552241,43.19283491,96.509,96.479,1.44480407]
[1644623552640,43.19283491,96.509,96.48,1.44480407]
[1644623553242,43.19283491,96.509,96.481,1.44480407]
[1644623553443,5.181,96.508,96.481,1.44480407]
[1644623553641,5.181,96.508,96.473,1.44480407]
[1644623553840,5.181,96.508,96.472,1.44480407]
[1644623554644,5.181,96.508,96.473,1.44480407]
[1644623555648,5.181,96.508,96.474,1.44480407]
[1644623556545,5.181,96.508,96.475,1.44480407]
[1644623556745,5.181,96.508,96.474,1.44480407]
[1644623557747,5.181,96.508,96.475,1.44480407]
[1644623558450,5.181,96.508,96.474,1.44480407]
[1644623558648,5.181,96.508,96.475,1.44480407]
[1644623558848,15.5558,96.5,96.475,1.44480407]
[1644623559048,15.5558,96.5,96.472,1.44480407]
[1644623559450,15.5558,96.5,96.469,1.44480407]
[1644623559651,15.5558,96.5,96.47,1.44480407]
[1644623562451,15.5558,96.5,96.471,1.44480407]
[1644623563754,15.5558,96.5,96.472,1.44480407]
[1644623563954,15.5558,96.5,96.473,1.44480407]
[1644623564154,15.5558,96.5,96.474,1.44480407]
[1644623564354,15.5558,96.5,96.475,1.44480407]
[1644623564653,43.19283491,96.509,96.476,1.44480407]
[1644623565958,43.19283491,96.509,96.477,1.44480407]
[1644623566357,43.19283491,96.509,96.484,1.44480407]
[1644623566558,43.19283491,96.509,96.485,1.44480407]
[1644623566756,43.19283491,96.509,96.486,1.44480407]
[1644623567457,15.5534,96.52,96.486,1.44480407]
[1644623567658,5.181,96.539,96.487,1.44480407]
[1644623567857,72.1072,96.579,96.487,1.44480407]
[1644623567858,5.181,96.574,96.505,1.44480407]
[1644623568061,48.7898,96.579,96.524,1.44480407]
[1644623568358,0.05273484,96.59,96.529,1.44480407]
[1644623568559,39.00669672,96.577,96.529,1.44480407]
[1644623568959,5.178,96.576,96.523,1.44480407]
[1644623569559,5.178,96.576,96.518,1.44480407]
[1644623569760,5.178,96.576,96.514,1.44480407]
[1644623569960,5.178,96.576,96.513,1.44480407]
[1644623570859,15.5457,96.57,96.51,15.5468]
[1644623571065,5.179,96.569,96.51,15.5468]
[1644623571282,5.179,96.569,96.505,1.44480407]
[1644623571483,29.366,96.576,96.494,1.44480407]
[1644623571681,15.60093484,96.56,96.486,1.44480407]
[1644623571883,67.19327472,96.559,96.483,1.44480407]
[1644623572085,0.05273484,96.55,96.483,1.44480407]
[1644623572283,5.18,96.549,96.483,1.44480407]
[1644623572483,5.18,96.558,96.482,1.44480407]
[1644623572683,5.181,96.548,96.48,1.44480407]
[1644623572883,23.7914,96.547,96.48,1.44480407]
[1644623573083,23.7914,96.547,96.476,1.44480407]
[1644623573284,5.181,96.546,96.476,1.44480407]
[1644623573688,15.553,96.54,96.476,1.44480407]
[1644623573885,5.18,96.539,96.476,1.44480407]
[1644623574085,5.18,96.546,96.476,1.44480407]
[1644623575787,15.5537,96.53,96.476,1.44480407]
[1644623575987,43.97266081,96.528,96.476,1.44480407]
[1644623576386,5.181,96.527,96.476,1.44480407]
[1644623576586,43.97266081,96.528,96.475,1.44480407]
[1644623576787,15.5535,96.52,96.475,1.44480407]
[1644623576985,15.5535,96.52,96.476,1.44480407]
[1644623577786,15.5535,96.52,96.478,1.44480407]
[1644623577986,15.5535,96.52,96.479,1.44480407]
[1644623578389,5.181,96.527,96.483,1.44480407]
[1644623578690,43.97266081,96.528,96.484,1.44480407]
[1644623579189,43.97266081,96.528,96.482,1.44480407]
[1644623579790,43.97266081,96.528,96.483,1.44480407]
[1644623580193,15.5536,96.52,96.483,1.44480407]
[1644623580392,15.5536,96.52,96.481,1.44480407]
[1644623580591,15.5536,96.52,96.48,1.44480407]
[1644623581591,15.5536,96.52,96.481,1.44480407]
[1644623582395,15.5536,96.52,96.483,1.44480407]
[1644623582792,15.5536,96.52,96.481,1.44480407]
[1644623582992,15.5536,96.52,96.479,1.44480407]
[1644623583195,5.181,96.519,96.479,1.44480407]
[1644623583593,5.181,96.519,96.482,1.44480407]
[1644623583794,5.181,96.519,96.481,1.44480407]
[1644623583996,5.181,96.519,96.479,1.44480407]
[1644623584393,5.181,96.519,96.48,1.44480407]
[1644623584598,15.5536,96.52,96.479,1.44480407]
[1644623585596,15.5536,96.52,96.481,1.44480407]
[1644623585899,5.181,96.519,96.479,1.44480407]
[1644623586296,5.181,96.519,96.478,1.44480407]
[1644623586502,15.5554,96.51,96.477,1.44480407]
[1644623586702,15.5554,96.51,96.476,1.44480407]
[1644623586898,5.182,96.509,96.475,1.44480407]
[1644623587500,19.0,96.508,96.446,2.87016446]
[1644623587800,15.5582,96.5,96.432,5.66134049]
[1644623587998,5.183,96.499,96.43,0.024]
[1644623588198,5.183,96.499,96.42,0.024]
[1644623588398,39.81634195,96.498,96.42,0.024]
[1644623588598,5.183,96.497,96.42,0.024]
[1644623589598,15.5641,96.48,96.42,0.024]
[1644623589799,36.16500106,96.479,96.421,5.184]
[1644623590206,36.16500106,96.479,96.422,5.65869649]
[1644623590400,36.16500106,96.479,96.423,5.184]
[1644623590600,5.183,96.478,96.423,5.184]
[1644623590801,5.183,96.478,96.421,5.183]
[1644623591002,15.562,96.47,96.42,0.024]
[1644623591202,15.562,96.47,96.411,23.9485]
[1644623591902,15.562,96.47,96.412,5.65245394]
[1644623592104,5.184,96.469,96.412,5.65245394]
[1644623593102,23.2055,96.478,96.413,5.184]
[1644623593302,23.2055,96.478,96.42,0.024]
[1644623594402,15.5617,96.47,96.42,0.024]
[1644623594606,15.5617,96.47,96.413,5.184]
[1644623594905,5.184,96.469,96.413,5.184]
[1644623595304,5.184,96.477,96.41,0.024]
[1644623595502,5.184,96.468,96.41,0.024]
[1644623595702,24.8677,96.467,96.41,0.024]
[1644623596102,15.5659,96.46,96.41,0.024]
[1644623596302,46.68959992,96.458,96.41,0.024]
[1644623596503,46.68959992,96.458,96.391,8.4996986]
[1644623596706,5.184,96.457,96.391,5.62953414]
[1644623597803,15.565,96.45,96.391,5.62953414]
[1644623599103,5.184,96.449,96.391,5.62953414]
[1644623599406,15.5667,96.44,96.391,5.62953414]
[1644623599802,15.5667,96.44,96.39,15.5897]
[1644623600003,15.5667,96.44,96.39,15.5657]
[1644623600207,45.48559611,96.439,96.39,15.5657]
[1644623601007,45.48559611,96.439,96.391,5.6237444]
[1644623601204,15.5679,96.43,96.391,5.6237444]
[1644623601406,15.5679,96.43,96.386,5.6237444]
[1644623601605,50.66959611,96.439,96.38,0.024]
[1644623601606,5.186,96.429,96.38,0.024]
[1644623601807,45.48559611,96.439,96.369,5.6237444]
[1644623601808,29.2314,96.438,96.369,5.6237444]
[1644623602008,5.186,96.428,96.37,0.024]
[1644623602207,5.186,96.437,96.361,2.87016446]
[1644623602406,5.187,96.427,96.37,0.024]
[1644623602605,5.187,96.436,96.36,2.89416446]
[1644623602807,15.5716,96.42,96.37,0.024]
[1644623603009,43.37455456,96.419,96.361,5.6237444]
[1644623603208,43.37455456,96.419,96.36,0.024]
[1644623604310,42.87455456,96.419,96.36,0.024]
[1644623604711,15.5721,96.41,96.36,0.024]
[1644623606211,5.187,96.409,96.36,0.024]
[1644623607313,15.5721,96.41,96.36,0.024]
[1644623608718,42.87455456,96.419,96.36,15.5943]
[1644623608916,42.87455456,96.419,96.361,5.61882861]
[1644623609314,42.87455456,96.419,96.36,2.89416446]
[1644623609517,42.87455456,96.419,96.361,2.87016446]
[1644623609715,42.87455456,96.419,96.365,2.87016446]
[1644623610716,42.87455456,96.419,96.37,15.5679]
[1644623610916,42.87455456,96.419,96.371,5.61882861]
[1644623611420,42.87455456,96.419,96.365,2.87016446]
[1644623611616,42.87455456,96.419,96.371,5.187]
[1644623611819,42.87455456,96.419,96.372,5.61882861]
[1644623612020,42.87455456,96.419,96.367,2.87016446]
[1644623612217,42.87455456,96.419,96.363,2.87016446]
[1644623612647,42.87455456,96.419,96.365,2.87016446]
[1644623612847,5.187,96.418,96.363,2.87016446]
[1644623613046,5.187,96.418,96.36,0.024]
[1644623613448,12.377,96.418,96.36,0.024]
[1644623613848,12.377,96.418,96.341,2.87016446]
[1644623614049,23.8833,96.417,96.35,0.024]
[1644623614248,15.5711,96.41,96.35,0.024]
[1644623615851,5.187,96.409,96.35,0.024]
[1644623616051,15.5734,96.4,96.35,0.024]
[1644623616250,44.37765369,96.399,96.35,0.024]
[1644623616453,49.56565369,96.399,96.35,0.024]
[1644623616853,44.37765369,96.399,96.35,0.024]
[1644623617052,5.188,96.398,96.35,0.024]
[1644623617452,5.188,96.398,96.35,15.5969]
[1644623617754,5.188,96.416,96.351,10.80682861]
[1644623617956,5.188,96.429,96.358,2.87016446]
[1644623618152,5.187,96.437,96.362,2.87016446]
[1644623618353,5.187,96.428,96.37,0.024]
[1644623618558,43.51632768,96.427,96.37,15.5937]
[1644623618856,43.51632768,96.427,96.371,5.61882861]
[1644623619254,43.51632768,96.427,96.37,0.024]
[1644623619954,5.186,96.426,96.37,0.024]
[1644623620254,5.186,96.448,96.38,15.5677]
[1644623620455,51.8818,96.48,96.39,0.024]
[1644623620654,5.186,96.479,96.386,2.87016446]
[1644623620854,5.184,96.497,96.39,0.024]
[1644623621054,5.184,96.478,96.4,0.024]
[1644623621256,15.5617,96.47,96.4,0.024]
[1644623621456,5.184,96.469,96.41,15.5627]
[1644623621956,47.55774697,96.477,96.411,5.184]
[1644623622156,5.184,96.468,96.4,54.76316446]
[1644623622359,5.184,96.476,96.401,5.62131245]
[1644623622558,5.184,96.476,96.42,15.5602]
[1644623624158,5.184,96.476,96.42,15.5842]
[1644623624359,47.55774697,96.477,96.42,15.5842]
[1644623624760,47.55774697,96.477,96.42,18.45436446]
[1644623624964,47.55774697,96.477,96.43,15.5562]
[1644623627163,5.183,96.499,96.43,15.5562]
[1644623627363,15.5572,96.5,96.45,15.5559]
[1644623627567,15.5555,96.51,96.45,15.5559]
[1644623627764,5.182,96.509,96.45,15.5559]
[1644623628265,44.36512051,96.508,96.45,15.5559]
[1644623628462,5.182,96.507,96.45,15.5559]
[1644623631569,15.5567,96.5,96.45,15.5559]
[1644623631771,5.182,96.499,96.45,15.5559]
[1644623633971,15.5583,96.49,96.431,5.182]
[1644623634373,5.183,96.489,96.431,5.182]
[1644623634782,43.68092576,96.488,96.431,5.182]
[1644623634977,5.183,96.487,96.431,5.182]
[1644623635774,15.5603,96.48,96.431,5.182]
[1644623635973,5.183,96.479,96.43,15.5593]
[1644623636373,5.183,96.479,96.426,46.5876]
[1644623636775,5.183,96.487,96.426,46.5876]
[1644623637074,5.183,96.478,96.426,46.5876]
[1644623637274,15.5601,96.48,96.43,0.024]
[1644623637473,15.5601,96.48,96.426,46.5876]
[1644623638074,15.5601,96.48,96.42,15.5841]
[1644623638375,15.5625,96.47,96.42,0.024]
[1644623638573,47.00581107,96.469,96.41,15.5865]
[1644623638790,52.18981107,96.469,96.41,15.5865]
[1644623639792,47.00581107,96.469,96.41,15.5865]
[1644623640994,15.5628,96.46,96.41,15.5865]
[1644623641395,5.184,96.459,96.41,15.5865]
[1644623641593,15.5628,96.46,96.41,15.5865]
[1644623642995,15.5628,96.46,96.411,5.184]
[1644623643197,47.00581107,96.469,96.411,5.184]
[1644623643395,47.00581107,96.469,96.41,15.5865]
[1644623643396,5.184,96.468,96.41,15.5865]
[1644623644698,15.5629,96.46,96.41,15.5865]
[1644623644897,5.184,96.459,96.41,15.5865]
[1644623645499,15.5629,96.46,96.411,5.184]
[1644623646198,15.5629,96.46,96.412,5.61021026]
[1644623647207,15.5629,96.46,96.42,15.5617]
[1644623647503,5.184,96.468,96.42,15.5617]
[1644623648304,5.184,96.468,96.421,4.44368479]
[1644623648906,5.184,96.468,96.422,5.61710343]
[1644623649805,5.184,96.468,96.43,15.5603]
[1644623650005,47.00581107,96.469,96.43,15.5603]
[1644623651508,47.00581107,96.469,96.431,4.44368479]
[1644623651711,5.184,96.468,96.431,4.44368479]
[1644623652108,15.5623,96.46,96.431,4.44368479]
[1644623652308,5.184,96.459,96.431,4.44368479]
[1644623653217,15.5636,96.45,96.42,0.024]
[1644623653414,15.5636,96.45,96.405,2.87016446]
[1644623653614,5.184,96.449,96.389,2.89117566]
[1644623653814,7.56766791,96.449,96.357,5.61875939]
[1644623654014,7.56766791,96.449,96.349,4.27233347]
[1644623654212,37.13205051,96.447,96.349,4.27233347]
[1644623654412,15.5704,96.44,96.35,15.5719]
[1644623654611,5.186,96.439,96.35,15.5719]
[1644623654811,5.186,96.439,96.351,5.61875939]
[1644623655612,28.598,96.439,96.351,5.61875939]
[1644623656715,15.5719,96.42,96.351,5.61875939]
[1644623656918,44.59696544,96.418,96.351,5.61875939]
[1644623657318,5.187,96.417,96.351,5.61875939]
[1644623658721,15.5725,96.4,96.351,5.61875939]
[1644623658922,42.33940609,96.399,96.352,5.188]
[1644623659122,42.33940609,96.399,96.353,5.61875939]
[1644623659321,5.188,96.438,96.36,15.5707]
[1644623659522,28.599,96.439,96.361,5.61875939]
[1644623659723,23.412,96.439,96.361,5.61875939]
[1644623659924,5.186,96.438,96.355,5.61875939]
[1644623660126,28.286,96.459,96.362,2.38366791]
[1644623660325,42.94386624,96.458,96.363,10.80475939]
[1644623660526,5.186,96.457,96.38,15.5678]
[1644623660726,5.186,96.457,96.381,10.80275939]
[1644623660928,15.5661,96.44,96.381,7.56766791]
[1644623661127,44.12472441,96.439,96.381,7.56766791]
[1644623661525,44.12472441,96.439,96.382,5.55888532]
[1644623661724,44.12472441,96.439,96.39,15.5659]
[1644623663226,44.12472441,96.439,96.391,5.184]
[1644623664128,5.184,96.458,96.4,15.5649]
[1644623664328,5.184,96.467,96.4,15.5649]
[1644623664529,28.6287,96.486,96.401,2.38366791]
[1644623664729,28.6287,96.486,96.401,7.9446583]
[1644623664952,5.184,96.486,96.402,5.56099039]
[1644623665151,38.00654272,96.485,96.41,14.93]
[1644623665355,38.00654272,96.485,96.42,15.5594]
[1644623665551,38.00654272,96.485,96.421,5.56099039]
[1644623665952,38.00654272,96.485,96.422,2.38366791]
[1644623666154,38.00654272,96.485,96.423,5.56099039]
[1644623666357,15.5553,96.51,96.44,15.5559]
[1644623666554,5.182,96.509,96.441,5.182]
[1644623666756,5.182,96.509,96.441,2.38366791]
[1644623667055,5.182,96.509,96.442,2.38366791]
[1644623667254,5.182,96.509,96.443,5.182]
[1644623667455,43.82442029,96.508,96.46,15.5543]
[1644623667657,5.182,96.507,96.46,15.5543]
[1644623669356,5.182,96.507,96.45,15.5562]
[1644623670656,43.82442029,96.508,96.45,15.5562]
[1644623672159,5.182,96.507,96.45,15.5562]
[1644623672358,43.82442029,96.508,96.451,5.182]
[1644623672658,43.82442029,96.508,96.45,15.5562]
[1644623674163,43.82442029,96.508,96.451,5.182]
[1644623674361,43.82442029,96.508,96.46,15.5548]
[1644623674661,15.5569,96.5,96.451,5.182]
[1644623674861,5.182,96.499,96.451,5.182]
[1644623675563,5.182,96.507,96.45,15.5554]
[1644623675862,5.182,96.507,96.424,29.522]
[1644623676062,5.182,96.507,96.424,24.34]
[1644623676866,5.182,96.507,96.403,50.76996791]
[1644623677064,23.8293,96.506,96.411,5.183]
[1644623677263,5.183,96.505,96.411,5.183]
[1644623677463,15.5575,96.5,96.42,15.5609]
[1644623677666,5.183,96.499,96.42,15.5609]
[1644623677864,14.93,96.49,96.384,5.183]
[1644623678063,47.5915,96.489,96.39,0.024]
[1644623678266,52.7755,96.489,96.38,0.024]
[1644623678465,2.38366791,96.488,96.4,0.024]
[1644623678664,38.14857516,96.486,96.39,0.024]
[1644623678865,5.184,96.485,96.39,0.024]
[1644623679065,14.93,96.48,96.39,0.024]
[1644623679264,15.5653,96.46,96.39,15.5897]
[1644623679466,40.53294884,96.458,96.4,0.024]
[1644623679664,40.53294884,96.458,96.39,15.5897]
[1644623679865,5.184,96.457,96.39,15.5897]
[1644623680867,15.5657,96.45,96.39,15.5897]
[1644623681067,5.184,96.449,96.39,15.5897]
[1644623681766,5.184,96.457,96.39,15.5897]
[1644623681969,5.184,96.448,96.39,15.5897]
[1644623682166,5.184,96.457,96.39,15.5897]
[1644623682767,36.24342638,96.439,96.39,15.5897]
[1644623682967,36.24342638,96.439,96.39,15.5657]
[1644623683171,5.184,96.438,96.39,15.5657]
[1644623684368,36.24342638,96.439,96.391,5.184]
[1644623684571,36.24342638,96.439,96.4,15.5626]
[1644623685168,36.24342638,96.439,96.401,5.184]
[1644623685370,5.184,96.468,96.401,5.184]
[1644623685570,5.184,96.468,96.41,15.5617]
[1644623685870,23.3962,96.469,96.411,5.184]
[1644623686072,5.184,96.488,96.411,5.184]
[1644623686073,5.184,96.488,96.411,7.56766791]
[1644623686273,5.184,96.509,96.412,14.42668412]
[1644623686469,24.0489,96.519,96.413,29.00292987]
[1644623686470,29.2319,96.519,96.413,29.00292987]
[1644623686670,5.183,96.508,96.414,10.72422987]
[1644623686871,5.183,96.518,96.415,5.54122987]
[1644623687073,5.183,96.518,96.43,14.93]
[1644623687271,44.34351708,96.517,96.43,14.93]
[1644623687473,15.5552,96.51,96.431,5.182]
[1644623687675,5.182,96.509,96.431,2.38366791]
[1644623687879,5.182,96.515,96.418,2.38366791]
[1644623688079,5.183,96.508,96.44,15.5578]
[1644623688277,5.183,96.516,96.44,15.5578]
[1644623688478,15.5555,96.51,96.44,15.5578]
[1644623688681,5.182,96.509,96.44,15.5578]
[1644623688880,15.5555,96.51,96.441,5.182]
[1644623689280,15.5555,96.51,96.431,5.182]
[1644623689481,5.182,96.509,96.45,15.5562]
[1644623689682,15.5567,96.5,96.45,15.5562]
[1644623690179,5.182,96.499,96.432,48.6657]
[1644623690384,35.67264663,96.498,96.418,2.38366791]
[1644623690581,5.183,96.497,96.406,2.38366791]
[1644623690781,5.183,96.497,96.407,5.55240536]
[1644623691786,15.5586,96.49,96.42,15.5611]
[1644623691987,5.183,96.489,96.42,15.5611]
[1644623692391,5.183,96.497,96.42,15.5611]
[1644623693790,42.80569093,96.479,96.42,15.5611]
[1644623694889,15.5616,96.47,96.42,15.5611]
[1644623695293,5.184,96.469,96.42,15.5611]
[1644623695498,15.5616,96.47,96.42,15.5611]
[1644623696293,15.5616,96.47,96.4,0.024]
[1644623696495,7.56766791,96.469,96.39,0.024]
[1644623696694,15.5685,96.45,96.38,0.024]
[1644623696894,5.184,96.449,96.39,0.024]
[1644623697094,43.45931065,96.448,96.38,0.024]
[1644623697496,5.184,96.447,96.38,0.024]
[1644623698822,15.568,96.44,96.38,15.592]
[1644623699011,5.186,96.439,96.381,5.56082779]
[1644623699411,5.186,96.447,96.38,0.024]
[1644623699815,15.5669,96.44,96.38,15.5913]
[1644623700012,15.5669,96.44,96.381,5.186]
[1644623700213,15.5669,96.44,96.381,10.74682779]
[1644623700412,15.5669,96.44,96.382,5.56082779]
[1644623700713,15.5669,96.44,96.383,5.186]
[1644623700915,43.45931065,96.448,96.383,5.186]
[1644623701113,43.45931065,96.448,96.39,15.5895]
[1644623701314,43.45931065,96.448,96.391,5.56082779]
[1644623701916,43.45931065,96.448,96.39,15.5895]
[1644623702116,5.184,96.447,96.39,15.5895]
[1644623702318,5.184,96.447,96.39,15.5655]
[1644623702516,15.5667,96.44,96.38,15.5915]
[1644623702716,5.186,96.439,96.381,5.55134347]
[1644623704518,4.686,96.439,96.381,5.55134347]
[1644623705519,4.686,96.439,96.381,7.93501138]
[1644623705719,4.686,96.439,96.382,5.55134347]
[1644623705919,4.686,96.439,96.39,15.5665]
[1644623706330,4.686,96.439,96.383,2.38366791]
[1644623706720,4.686,96.439,96.384,5.55410092]
[1644623707119,4.686,96.439,96.385,2.38366791]
[1644623707320,4.686,96.439,96.386,5.55410092]
[1644623707523,4.686,96.439,96.407,1.4391907]
[1644623707724,4.686,96.439,96.408,1.4391907]
[1644623707922,5.184,96.468,96.408,3.82285861]
[1644623708125,5.184,96.469,96.415,1.4391907]
[1644623708323,5.184,96.488,96.423,1.4391907]
[1644623708523,5.184,96.468,96.424,1.4391907]
[1644623708722,5.184,96.487,96.424,1.4391907]
[1644623708922,37.75069015,96.486,96.425,1.4391907]
[1644623709122,42.93469015,96.486,96.426,1.4391907]
[1644623709725,15.5619,96.47,96.426,1.4391907]
[1644623710123,15.5619,96.47,96.425,1.4391907]
[1644623710329,43.01574163,96.469,96.425,1.4391907]
[1644623710527,5.184,96.468,96.424,1.4391907]
[1644623710727,43.01574163,96.469,96.425,1.4391907]
[1644623710927,15.5607,96.48,96.43,15.5601]
[1644623711131,5.184,96.498,96.433,1.4391907]
[1644623711333,5.184,96.498,96.438,1.4391907]
[1644623711532,0.05266347,96.51,96.448,1.4391907]
[1644623711931,0.05266347,96.51,96.449,1.4391907]
[1644623712128,5.183,96.509,96.449,1.4391907]
[1644623712429,5.183,96.509,96.446,1.4391907]
[1644623712628,0.05266347,96.5,96.441,1.4391907]
[1644623712831,5.182,96.499,96.441,1.4391907]
[1644623713026,42.29659038,96.498,96.441,1.4391907]
[1644623713230,47.47859038,96.498,96.441,1.4391907]
[1644623713828,47.47859038,96.498,96.439,1.4391907]
[1644623714129,15.5595,96.49,96.44,1.4391907]
[1644623714329,5.183,96.489,96.44,1.4391907]
[1644623714828,15.5595,96.49,96.442,1.4391907]
[1644623715029,42.29659038,96.498,96.445,1.4391907]
[1644623715531,42.29659038,96.498,96.444,1.4391907]
[1644623715732,42.29659038,96.498,96.443,1.4391907]
[1644623716934,42.29659038,96.498,96.444,1.4391907]
[1644623717132,42.29659038,96.498,96.443,1.4391907]
[1644623717335,15.5586,96.49,96.443,1.4391907]
[1644623717534,5.183,96.489,96.443,1.4391907]
[1644623717738,5.183,96.489,96.441,1.4391907]
[1644623717932,5.183,96.489,96.442,1.4391907]
[1644623718136,5.183,96.489,96.441,1.4391907]
[1644623718334,5.183,96.489,96.44,16.9967907]
[1644623718634,5.183,96.489,96.441,1.4391907]
[1644623719333,5.183,96.489,96.442,1.4391907]
[1644623720939,0.05266347,96.5,96.455,1.4391907]
[1644623721135,0.05266347,96.51,96.457,1.4391907]
[1644623721334,0.05266347,96.54,96.459,1.4391907]
[1644623721537,0.05266347,96.5,96.459,1.4391907]
[1644623721736,0.05266347,96.53,96.459,1.4391907]
[1644623721937,0.05266347,96.53,96.46,15.5522]
[1644623721938,38.34927706,96.498,96.46,15.5522]
[1644623722136,38.34927706,96.498,96.46,17.93586791]
[1644623722435,38.34927706,96.498,96.461,2.38366791]
[1644623722835,38.34927706,96.498,96.461,3.82285861]
[1644623723036,5.182,96.519,96.47,15.5524]
[1644623723237,5.182,96.519,96.461,1.4391907]
[1644623723437,5.182,96.519,96.457,1.4391907]
[1644623723935,5.182,96.519,96.456,1.4391907]
[1644623724137,42.53865944,96.518,96.456,1.4391907]
[1644623724338,5.182,96.517,96.454,1.4391907]